bitfinex/quotes_ETHUSD_20250322
["timestamp","ask_amount","ask_price","bid_price","bid_amount"]
[1742668412083,10.56285739,1995.5,1995.1,5.1398897]
[1742668412384,15.57434739,1995.5,1995.1,5.1398897]
[1742668412784,12.57434739,1995.5,1995.1,5.1398897]
[1742668413368,7.56285739,1995.5,1995.1,5.1398897]
[1742668413570,12.57431739,1995.5,1995.1,5.1398897]
[1742668414689,5.01153,1995.4,1995.1,0.1276197]
[1742668414884,7.56303739,1995.4,1995.1,0.1276197]
[1742668415068,12.57478739,1995.4,1995.1,0.1276197]
[1742668416490,5.01179,1995.3,1995.1,0.1276197]
[1742668417059,5.01153,1995.4,1995.1,0.1276197]
[1742668417774,5.01153,1995.4,1995.1,5.1398497]
[1742668419493,7.56291739,1995.5,1995.1,5.1398497]
[1742668419696,12.57440739,1995.5,1995.1,5.1398497]
[1742668420396,12.57438739,1995.5,1995.1,5.1398497]
[1742668420902,7.56291739,1995.5,1995.1,31.6388497]
[1742668422804,12.57442739,1995.5,1995.1,31.6388497]
[1742668424375,12.57429739,1995.5,1995.1,31.6388497]
[1742668427109,7.56288739,1995.5,1995.1,31.6388497]
[1742668427411,12.57438739,1995.5,1995.1,31.6388497]
[1742668427711,28.004845,1996.9,1995.1,31.6388497]
[1742668427712,5.00989,1996.1,1995.7,5.01071]
[1742668427872,3.32360739,1996.4,1996.1,5.00967]
[1742668428310,2.55150739,1996.3,1995.9,4.657]
[1742668428603,3.83328574,1996.3,1995.9,14.6774]
[1742668428913,5.00933,1996.3,1995.9,12.21864739]
[1742668429107,5.00933,1996.3,1995.9,9.66714]
[1742668429323,8.00933,1996.3,1995.9,9.66714]
[1742668429811,5.0096,1996.2,1995.9,4.657]
[1742668435021,8.0093,1996.3,1995.9,4.657]
[1742668435191,3.0,1996.3,1996.0,5.00991]
[1742668435386,3.0,1996.3,1996.0,5.76901]
[1742668435822,3.0,1996.3,1996.0,0.7591]
[1742668437427,8.00935,1996.3,1996.0,0.7591]
[1742668438203,3.0,1996.3,1996.0,0.7591]
[1742668438428,3.0,1996.3,1996.0,6.88799847]
[1742668439331,3.0,1996.3,1996.0,6.93809369]
[1742668439499,3.0,1996.3,1996.1,5.0097]
[1742668440927,3.0,1996.3,1996.0,6.88799847]
[1742668442435,8.00929,1996.3,1996.0,1.87798847]
[1742668442606,5.00953,1996.2,1995.9,31.149]
[1742668443335,5.00977,1996.1,1995.9,31.149]
[1742668444126,5.00953,1996.2,1995.9,31.149]
[1742668447441,10.01925,1996.2,1995.9,31.149]
[1742668448404,5.00953,1996.2,1995.9,31.149]
[1742668448839,10.01923,1996.2,1995.9,31.149]
[1742668449034,5.00979,1996.1,1995.9,31.149]
[1742668453158,5.00979,1996.1,1995.9,4.657]
[1742668459164,5.00953,1996.2,1995.9,4.657]
[1742668459461,10.01925,1996.2,1995.9,4.657]
[1742668459762,5.00953,1996.2,1995.9,4.657]
[1742668460862,10.01926,1996.2,1995.9,4.657]
[1742668461733,10.01922,1996.2,1995.9,4.657]
[1742668462061,10.01924,1996.2,1995.9,4.657]
[1742668463560,5.00953,1996.2,1995.9,4.657]
[1742668463764,10.01922,1996.2,1995.9,4.657]
[1742668463932,10.01924,1996.2,1995.9,4.657]
[1742668464134,5.00953,1996.2,1995.9,4.657]
[1742668464758,7.55855495,1996.1,1995.9,4.657]
[1742668464961,8.37417495,1996.0,1995.8,31.133]
[1742668465166,7.55897495,1995.9,1995.8,31.133]
[1742668465337,7.55897495,1995.9,1995.8,26.489]
[1742668465538,9.72101944,1995.9,1995.8,26.489]
[1742668466184,7.17231449,1995.9,1995.8,26.489]
[1742668466479,8.38164495,1996.3,1995.8,29.03770495]
[1742668466651,3.0,1996.2,1995.8,34.82485495]
[1742668466857,8.00954,1996.2,1995.8,34.82485495]
[1742668467353,3.8236,1996.3,1995.9,7.60906345]
[1742668467550,8.83287,1996.3,1996.0,5.00992]
[1742668467750,8.83287,1996.3,1995.9,7.55896495]
[1742668467950,8.83287,1996.3,1995.9,5.06035679]
[1742668468150,11.38157495,1996.3,1995.9,5.06035679]
[1742668468665,5.83239,1996.5,1996.0,7.96950495]
[1742668468838,8.00902,1996.4,1996.0,8.77146512]
[1742668469041,8.00902,1996.4,1996.0,13.78139512]
[1742668469239,8.00902,1996.4,1996.0,11.23269017]
[1742668470339,8.00902,1996.4,1996.1,0.05009302]
[1742668471784,8.00902,1996.4,1996.0,16.24253017]
[1742668471968,8.00902,1996.4,1996.0,11.23263017]
[1742668472271,8.00902,1996.4,1996.1,0.05009324]
[1742668472473,8.00902,1996.4,1996.2,0.7768]
[1742668472774,3.0,1996.4,1996.2,0.7768]
[1742668479285,10.01778,1996.5,1996.2,0.7768]
[1742668480500,5.00903,1996.4,1996.0,36.91995]
[1742668489598,5.83644,1996.5,1996.0,41.92979]
[1742668489886,5.83644,1996.5,1996.1,0.05009151]
[1742668490721,10.84538,1996.5,1996.1,0.05009151]
[1742668491224,13.3934383,1996.5,1996.1,0.05009151]
[1742668491820,13.3934383,1996.5,1996.0,36.91984]
[1742668492819,5.00904,1996.4,1996.0,36.91984]
[1742668493021,5.00904,1996.4,1996.1,26.485]
[1742668496121,7.5570983,1996.4,1996.1,26.485]
[1742668497195,12.5662983,1996.4,1996.1,26.485]
[1742668498228,5.00929,1996.3,1996.1,26.485]
[1742668498821,7.5573483,1996.3,1996.1,26.485]
[1742668499021,13.3500083,1996.3,1996.1,26.485]
[1742668499532,2.5480583,1996.2,1996.1,26.485]
[1742668499901,7.5575683,1996.2,1996.1,26.485]
[1742668502436,8.3405583,1996.3,1996.1,26.485]
[1742668503233,13.3500083,1996.3,1996.1,26.485]
[1742668503434,8.3405583,1996.3,1996.1,26.485]
[1742668504130,5.00951,1996.2,1996.1,26.485]
[1742668507304,7.5575683,1996.2,1996.1,26.485]
[1742668507509,5.79322,1996.0,1995.9,26.486]
[1742668507836,8.3412783,1996.0,1995.9,26.486]
[1742668514749,8.3386183,1996.2,1995.9,26.486]
[1742668514964,3.0,1996.3,1995.9,26.486]
[1742668515171,5.00928,1996.3,1995.9,34.8221183]
[1742668517050,0.7809,1996.4,1996.0,5.0098]
[1742668517352,0.7809,1996.4,1996.2,0.778]
[1742668517353,3.0,1996.4,1996.2,0.778]
[1742668517538,3.0,1996.4,1996.3,4.644]
[1742668517715,5.00885,1996.5,1996.3,4.644]
[1742668517919,8.00885,1996.5,1996.3,4.644]
[1742668521049,10.5569083,1996.5,1996.3,4.644]
[1742668522056,5.00901,1996.4,1996.3,4.644]
[1742668524728,5.76573,1996.3,1995.9,26.486]
[1742668524928,5.00955,1996.2,1996.0,4.643]
[1742668527473,5.76573,1996.3,1996.0,4.643]
[1742668529551,5.00933,1996.3,1996.0,4.643]
[1742668529747,8.80637,1996.5,1996.0,13.02916434]
[1742668530055,8.80637,1996.5,1996.1,1.30291643]
[1742668530259,11.3544283,1996.5,1996.1,1.30291643]
[1742668530453,16.3633883,1996.5,1996.1,1.30291643]
[1742668531141,0.30654522,1996.4,1996.1,1.30291643]
[1742668536477,5.31559522,1996.4,1996.1,27.78891643]
[1742668539985,0.30654522,1996.4,1996.2,0.7719]
[1742668543883,5.22e-06,1996.4,1996.3,8.3167183]
[1742668544084,0.7734,1997.4,1996.7,0.7594]
[1742668544256,0.7734,1997.4,1997.2,5.00695]
[1742668544457,0.25577228,1997.3,1997.0,32.25289]
[1742668544857,0.25577228,1997.3,1997.0,27.2454]
[1742668546184,5.00711,1997.2,1997.0,26.486]
[1742668546384,10.02370017,1997.1,1997.0,26.486]
[1742668546552,10.27900778,1997.1,1997.0,26.486]
[1742668547787,9.03596761,1997.1,1997.0,26.486]
[1742668547969,13.27900778,1997.1,1997.0,26.486]
[1742668548673,5.00811,1996.8,1996.4,32.25032]
[1742668548990,0.254378,1996.7,1996.5,4.668]
[1742668549557,5.0078,1996.9,1996.5,4.668]
[1742668549758,0.25414553,1996.6,1996.5,4.668]
[1742668549959,5.0078,1996.9,1996.5,4.668]
[1742668550272,0.25414553,1996.6,1996.5,4.668]
[1742668550473,5.0078,1996.9,1996.5,4.668]
[1742668550882,0.25461043,1996.8,1996.5,4.668]
[1742668553398,0.25461043,1996.8,1996.5,9.67676]
[1742668553705,5.00758,1997.0,1996.5,9.67676]
[1742668554176,0.25550877,1996.9,1996.5,9.67676]
[1742668556602,0.25550877,1996.9,1996.5,9.72684179]
[1742668557320,0.25550877,1996.9,1996.5,9.67676]
[1742668557615,0.25550877,1996.9,1996.5,9.72684178]
[1742668558516,0.25550877,1996.9,1996.5,9.67676]
[1742668560720,0.25550877,1996.9,1996.5,9.72684177]
[1742668563329,0.25550877,1996.9,1996.5,14.73544177]
[1742668563530,0.25550877,1996.9,1996.5,9.6766]
[1742668567047,0.25550877,1996.9,1996.6,5.00845]
[1742668567846,0.25550877,1996.9,1996.5,12.22341976]
[1742668574039,0.25550877,1996.9,1996.5,17.23201976]
[1742668574239,0.25550877,1996.9,1996.5,17.23196976]
[1742668575653,0.25550877,1996.9,1996.5,12.22332976]
[1742668576052,0.25550877,1996.9,1996.5,9.6766]
[1742668576355,0.25550877,1996.9,1996.5,9.72668178]
[1742668577354,0.25550877,1996.9,1996.5,9.6766]
[1742668577656,8.58111853,1996.9,1996.5,4.668]
[1742668577949,1.02660877,1996.9,1996.5,9.67676]
[1742668578750,3.57333853,1996.9,1996.5,9.67676]
[1742668580354,1.02660877,1996.9,1996.5,9.67676]
[1742668582342,1.02660877,1996.9,1996.5,36.15676]
[1742668586657,1.02660877,1996.9,1996.5,36.15659]
[1742668587053,2.54672976,1996.7,1996.5,26.48]
[1742668587220,3.8006,1996.6,1996.5,26.48]
[1742668587424,0.25834381,1996.8,1996.6,5.00841]
[1742668587425,0.8006,1996.8,1996.6,5.00841]
[1742668587619,0.8006,1996.8,1996.6,5.00835]
[1742668587919,5.4446,1997.0,1996.6,5.00835]
[1742668588158,6.54373298,1997.0,1996.6,5.00835]
[1742668588358,6.90725298,1997.0,1996.6,5.00835]
[1742668589850,11.91494298,1997.0,1996.6,5.00835]
[1742668590058,14.46167274,1997.0,1996.6,5.00835]
[1742668593427,11.91494298,1997.0,1996.6,5.00835]
[1742668593627,11.91494298,1997.0,1996.5,36.14072]
[1742668593628,5.00776,1996.9,1996.5,36.14072]
[1742668594563,7.55448976,1996.9,1996.5,31.48872]
[1742668594758,0.8006,1996.8,1996.5,36.13572]
[1742668601069,0.25786614,1996.7,1996.5,36.13572]
[1742668603935,0.25786614,1996.7,1996.5,41.14439]
[1742668604136,0.25786614,1996.7,1996.6,5.00851]
[1742668604563,0.25786614,1996.7,1996.6,5.05859178]
[1742668604766,0.25786614,1996.7,1996.6,8.93332154]
[1742668605066,0.8092,1997.3,1997.1,5.00716]
[1742668605371,0.8092,1997.3,1996.9,5.00762]
[1742668605372,0.8092,1997.3,1997.0,5.00744]
[1742668607234,5.816,1997.3,1997.0,5.00744]
[1742668608772,0.8092,1997.3,1997.1,0.04099404]
[1742668612470,5.81599,1997.3,1997.1,0.04099404]
[1742668612671,8.36271976,1997.3,1997.1,0.04099404]
[1742668613358,5.81599,1997.3,1997.1,0.04099404]
[1742668616286,0.2598162,1997.2,1997.1,0.04099404]
[1742668621283,5.2668162,1997.2,1997.1,0.04099404]
[1742668621488,7.81354596,1997.2,1997.1,0.04099404]
[1742668623064,5.2668162,1997.2,1997.1,0.04099404]
[1742668640930,7.81354596,1997.2,1997.1,0.04099404]
[1742668641209,11.64134596,1997.2,1997.1,0.04099404]
[1742668641512,13.30615956,1997.2,1997.1,0.04099404]
[1742668642308,8.29915956,1997.2,1997.1,0.04099404]
[1742668642484,8.64134596,1997.2,1997.1,0.04099404]
[1742668644426,5.2668162,1997.2,1997.1,0.04099404]
[1742668646047,0.2598162,1997.2,1997.1,0.04099404]
[1742668646400,5.2668162,1997.2,1997.1,0.04099404]
[1742668653946,5.2168162,1997.2,1997.1,0.04099404]
[1742668657846,5.1668162,1997.2,1997.1,0.04099404]
[1742668658059,5.26247448,1997.2,1997.1,0.04099404]
[1742668669352,5.26247448,1997.2,1996.9,0.778]
[1742668670365,0.25547448,1997.2,1997.1,5.00726]
[1742668670539,3.0,1997.4,1997.1,5.00726]
[1742668670737,0.25148758,1997.3,1997.1,5.00726]
[1742668672561,0.25148758,1997.3,1997.0,7.55420976]
[1742668673136,5.25824758,1997.3,1997.0,7.55420976]
[1742668673331,5.25824758,1997.3,1997.0,8.88820274]
[1742668674041,5.25824758,1997.3,1997.0,32.81647298]
[1742668680311,10.26512758,1997.3,1997.0,27.80899298]
[1742668680491,5.00726,1997.1,1997.0,26.475]
[1742668680867,5.25828291,1997.1,1997.0,26.475]
[1742668681068,0.25102291,1997.1,1997.0,26.475]
[1742668681468,8.32303976,1997.3,1997.0,26.475]
[1742668681767,13.33001976,1997.3,1997.0,26.475]
[1742668681973,0.2513603,1997.2,1997.0,26.475]
[1742668682269,5.2584303,1997.2,1997.0,26.475]
[1742668683797,5.2584303,1997.2,1997.0,26.51599404]
[1742668688414,5.2584303,1997.2,1997.0,0.04099404]
[1742668691618,5.00726,1997.1,1997.0,0.04099404]
[1742668692003,5.25838795,1997.1,1997.0,0.04099404]
[1742668707556,7.80511771,1997.1,1997.0,0.04099404]
[1742668707845,8.60641771,1997.1,1997.0,0.04099404]
[1742668708510,5.25838795,1997.1,1997.0,0.04099404]
[1742668708712,0.25112795,1997.1,1997.0,0.04099404]
[1742668708913,5.00707,1997.2,1997.0,0.04099404]
[1742668709140,0.25069007,1997.1,1997.0,0.04099404]
[1742668709443,5.00707,1997.2,1997.0,0.04099404]
[1742668709643,0.25069007,1997.1,1997.0,5.04835404]
[1742668709953,3.0,1997.5,1997.1,5.00706]
[1742668710116,0.25138703,1997.4,1997.2,5.4147]
[1742668710471,0.25138703,1997.4,1997.3,5.00675]
[1742668710749,13.35892976,1997.9,1997.4,5.00628]
[1742668710915,0.25231599,1997.8,1997.4,12.55929976]
[1742668711246,0.25231599,1997.8,1997.5,5.00612]
[1742668711442,0.25231599,1997.8,1997.5,10.06229811]
[1742668711814,0.25231599,1997.8,1997.6,10.41967]
[1742668712240,0.25231599,1997.8,1997.6,5.4137]
[1742668712447,7.80463575,1997.8,1997.6,4.64]
[1742668712743,3.34802976,1997.7,1997.6,4.64]
[1742668712918,3.60011355,1997.7,1997.6,4.64]
[1742668713453,8.60586355,1997.7,1997.6,4.64]
[1742668714053,8.60586355,1997.7,1997.6,39.12972976]
[1742668714054,0.25208379,1997.7,1997.6,39.12972976]
[1742668714354,1.00633345,1998.3,1998.1,5.00469]
[1742668714553,0.25429528,1998.2,1998.0,5.77869]
[1742668714753,5.80541,1998.4,1998.1,5.0047]
[1742668715061,0.25452737,1998.3,1998.0,10.41869]
[1742668715255,0.25452737,1998.3,1998.0,11.71523198]
[1742668715439,10.00825,1998.4,1998.0,11.71523198]
[1742668715641,0.25429528,1998.2,1998.0,11.71523198]
[1742668715859,5.00411,1998.4,1998.0,11.71523198]
[1742668716161,7.55083976,1998.4,1998.0,11.71523198]
[1742668716466,7.55132976,1998.2,1998.0,4.64]
[1742668716656,5.00475,1998.1,1998.0,4.64]
[1742668716858,5.25881316,1998.1,1998.0,4.64]
[1742668719335,10.01021,1998.0,1997.8,4.639]
[1742668719642,0.25359887,1997.9,1997.8,4.639]
[1742668721977,5.25884887,1997.9,1997.8,4.639]
[1742668724373,0.25359887,1997.9,1997.8,5.1029]
[1742668724575,5.25884887,1997.9,1997.8,5.1029]
[1742668724780,0.25359887,1997.9,1997.8,5.1029]
[1742668728472,0.25359887,1997.9,1997.8,31.5669]
[1742668733601,0.25359887,1997.9,1997.8,32.3356]
[1742668733898,5.00426,1998.3,1997.9,5.00509]
[1742668734202,5.00426,1998.3,1998.0,0.500509]
[1742668735793,5.0045,1998.2,1998.0,0.500509]
[1742668735994,0.25618153,1998.1,1998.0,0.500509]
[1742668736198,5.00432,1998.3,1998.0,0.500509]
[1742668736391,0.25641364,1998.2,1998.0,0.500509]
[1742668738079,5.26092364,1998.2,1998.0,0.500509]
[1742668738279,5.26092364,1998.2,1997.8,37.89105]
[1742668738511,5.26092364,1998.2,1997.8,42.89642]
[1742668738817,5.26092364,1998.2,1997.8,37.89097]
[1742668739113,5.26092364,1998.2,1997.8,42.89637]
[1742668739717,5.26092364,1998.2,1997.8,37.89097]
[1742668739919,5.26092364,1998.2,1997.8,42.43242]
[1742668740920,5.26092364,1998.2,1997.8,37.42705]
[1742668743491,10.26565364,1998.2,1997.8,37.42705]
[1742668743692,10.26565364,1998.2,1998.0,0.04099404]
[1742668743895,5.00475,1998.1,1998.0,0.04099404]
[1742668744220,5.26153428,1998.1,1998.0,0.04099404]
[1742668744829,0.25678428,1998.1,1998.0,0.04099404]
[1742668746421,5.26153428,1998.1,1998.0,0.04099404]
[1742668747332,8.6375324,1998.1,1998.0,0.04099404]
[1742668747651,6.09383428,1998.1,1998.0,0.04099404]
[1742668753300,7.62763158,1998.1,1998.0,0.04099404]
[1742668758959,11.86723031,1998.1,1998.0,0.04099404]
[1742668764466,5.26153428,1998.1,1998.0,0.04099404]
[1742668767238,8.26153428,1998.1,1998.0,0.04099404]
[1742668767443,5.26153428,1998.1,1998.0,0.04099404]
[1742668771183,7.80540981,1998.1,1998.0,0.04099404]
[1742668782895,8.63450981,1998.1,1998.0,0.04099404]
[1742668783062,12.99841479,1998.1,1998.0,0.04099404]
[1742668787898,15.54229032,1998.1,1998.0,0.04099404]
[1742668789624,12.99841479,1998.1,1998.0,0.04099404]
[1742668793894,15.54229032,1998.1,1998.0,0.04099404]
[1742668799630,5.26153428,1998.1,1998.0,0.04099404]
[1742668799836,5.37532844,1998.7,1998.0,0.04099404]
[1742668799837,5.00159,1999.4,1998.2,0.7652]
[1742668800033,2.54387553,1999.1,1998.7,0.7652]
[1742668800240,2.54387553,1999.0,1998.8,4.734]
[1742668800529,7.54640553,1999.0,1998.8,4.734]
[1742668801518,12.54903553,1999.0,1998.8,4.734]
[1742668801718,7.54640553,1999.0,1998.8,4.734]
[1742668801907,7.54622553,1999.1,1998.8,4.734]
[1742668802112,2.54387553,1999.3,1998.8,9.73676]
[1742668802316,2.54387553,1999.5,1999.0,0.7652]
[1742668802513,5.0016,1999.4,1999.0,5.76759]
[1742668803008,7.54547553,1999.4,1999.0,5.76759]
[1742668803213,10.00332,1999.4,1999.0,5.76759]
[1742668803405,5.00178,1999.3,1999.0,0.7652]
[1742668803632,5.00178,1999.3,1999.0,5.76769]
[1742668803944,4.96078596,1999.3,1999.0,5.76769]
[1742668804946,4.96078596,1999.3,1999.0,0.7652]
[1742668807439,0.19558254,1999.2,1999.0,0.7652]
[1742668809749,0.19558254,1999.2,1999.1,35.69059192]
[1742668810116,5.00138,1999.5,1999.1,35.69059192]
[1742668810320,5.00138,1999.5,1999.2,4.725]
[1742668810645,5.00161,1999.4,1999.2,4.725]
[1742668811348,0.19564949,1999.3,1999.2,4.725]
[1742668811850,0.19570443,1999.3,1999.2,4.725]
[1742668812149,5.00155,1999.4,1999.2,4.725]
[1742668812351,0.19581447,1999.3,1999.2,4.725]
[1742668812651,5.00155,1999.4,1999.2,4.725]
[1742668812815,0.19945966,1999.3,1999.2,4.725]
[1742668813150,5.00155,1999.4,1999.2,4.725]
[1742668813351,0.19942449,1999.3,1999.2,4.725]
[1742668813653,5.00155,1999.4,1999.2,4.725]
[1742668813972,5.002,1999.2,1999.1,26.454]
[1742668814179,5.002,1999.2,1999.1,31.174]
[1742668814362,5.20108259,1999.2,1999.1,31.174]
[1742668815869,5.20108259,1999.2,1999.1,26.454]
[1742668821692,5.00241,1999.1,1998.9,4.718]
[1742668821891,0.19889363,1999.0,1998.9,4.718]
[1742668823297,5.20139363,1999.0,1998.9,4.718]
[1742668824182,5.00275,1998.9,1998.8,27.227]
[1742668824492,9.43532723,1998.9,1998.8,26.449]
[1742668825366,5.20098531,1998.9,1998.8,26.449]
[1742668830805,9.43532723,1998.9,1998.8,26.449]
[1742668831005,10.87910995,1998.9,1998.8,26.449]
[1742668831210,11.00801289,1998.9,1998.8,26.449]
[1742668831881,5.32988825,1998.9,1998.8,26.449]
[1742668833917,0.32713825,1998.9,1998.8,26.449]
[1742668834087,8.00238,1999.1,1998.8,26.449]
[1742668834294,5.32916095,1999.0,1998.9,0.778]
[1742668835211,0.32650095,1999.0,1998.9,0.778]
[1742668835730,0.29911434,1999.0,1998.9,0.778]
[1742668842524,0.29895409,1999.0,1998.9,0.778]
[1742668842764,5.00207,1999.2,1998.9,0.778]
[1742668843065,0.29895409,1999.0,1998.9,0.778]
[1742668843270,5.00207,1999.2,1998.9,0.778]
[1742668843452,0.29895409,1999.0,1998.9,0.778]
[1742668843660,5.00207,1999.2,1998.9,0.778]
[1742668843861,0.29895409,1999.0,1998.9,0.778]
[1742668844063,5.00207,1999.2,1998.9,0.778]
[1742668844683,0.29917945,1999.1,1998.9,0.778]
[1742668850239,0.29917945,1999.1,1998.9,27.226]
[1742668851922,0.29917945,1999.1,1998.9,32.2287]
[1742668853911,0.29917945,1999.1,1998.9,27.226]
[1742668855297,5.30143945,1999.1,1998.9,27.226]
[1742668856831,0.29917945,1999.1,1998.9,27.226]
[1742668858408,0.29917945,1999.1,1998.9,26.448]
[1742668858610,5.0025,1999.0,1998.9,26.448]
[1742668858829,5.7694,1999.0,1998.9,26.448]
[1742668859010,6.06962474,1999.0,1998.9,26.448]
[1742668859182,8.61159183,1999.0,1998.9,26.448]
[1742668859510,9.97297701,1999.0,1998.9,26.448]
[1742668860019,12.97297701,1999.0,1998.9,26.448]
[1742668861113,14.66799193,1999.0,1998.9,26.448]
[1742668863687,13.30660675,1999.0,1998.9,26.448]
[1742668863900,3.30022474,1999.0,1998.9,26.448]
[1742668864116,8.30272474,1999.0,1998.9,26.448]
[1742668865030,13.30660675,1999.0,1998.9,26.448]
[1742668865998,0.30022474,1999.0,1998.9,26.448]
[1742668866606,5.00202,1999.2,1998.9,31.129]
[1742668866816,0.29847332,1999.0,1998.9,31.129]
[1742668867031,5.00202,1999.2,1998.9,31.129]
[1742668867225,0.29852681,1999.0,1998.9,31.129]
[1742668867426,5.00202,1999.2,1998.9,31.129]
[1742668867630,0.29852681,1999.0,1998.9,31.129]
[1742668867835,5.00202,1999.2,1998.9,31.129]
[1742668868048,0.29852681,1999.0,1998.9,31.129]
[1742668868508,10.00421,1999.2,1998.9,31.129]
[1742668868711,0.29875219,1999.1,1998.9,31.129]
[1742668872041,5.30100219,1999.1,1998.9,31.129]
[1742668882171,0.29875219,1999.1,1998.9,31.129]
[1742668882354,0.29875219,1999.1,1998.9,36.13173]
[1742668885174,0.29875219,1999.1,1998.9,31.129]
[1742668885573,0.29875219,1999.1,1999.0,5.0025]
[1742668885874,8.00183,1999.3,1998.9,36.13162]
[1742668886264,0.29964617,1999.2,1998.9,36.13162]
[1742668888178,5.30164617,1999.2,1998.9,36.13162]
[1742668888884,5.30164617,1999.2,1999.0,26.448]
[1742668889674,0.29964617,1999.2,1999.0,26.448]
[1742668893080,5.30174617,1999.2,1999.0,26.448]
[1742668893453,5.30174617,1999.2,1999.0,4.658]
[1742668893454,6.08484617,1999.2,1999.0,4.658]
[1742668894380,5.00225,1999.1,1999.0,4.658]
[1742668894559,5.30174114,1999.1,1999.0,4.658]
[1742668895182,0.29949114,1999.1,1999.0,4.658]
[1742668900967,7.84262621,1999.1,1999.0,4.658]
[1742668901282,5.30174114,1999.1,1999.0,4.658]
[1742668902898,6.13264114,1999.1,1999.0,4.658]
[1742668903195,8.67352621,1999.1,1999.0,4.658]
[1742668903361,6.13264114,1999.1,1999.0,4.658]
[1742668904787,8.67352621,1999.1,1999.0,4.658]
[1742668907607,8.67352621,1999.1,1998.9,26.448]
[1742668907784,8.67352621,1999.1,1998.9,31.095]
[1742668908389,8.67352621,1999.1,1998.9,26.448]
[1742668908588,8.67352621,1999.1,1998.9,31.094]
[1742668908791,8.67352621,1999.1,1998.9,26.448]
[1742668909089,8.67352621,1999.1,1998.9,31.094]
[1742668909268,8.67352621,1999.1,1998.9,26.448]
[1742668909469,8.67352621,1999.1,1998.9,31.094]
[1742668910097,5.30174114,1999.1,1998.9,31.094]
[1742668910994,7.84262621,1999.1,1998.9,31.094]
[1742668911291,7.84262621,1999.1,1998.9,26.448]
[1742668911500,7.84262621,1999.1,1998.9,31.093]
[1742668913395,7.84262621,1999.1,1998.9,26.448]
[1742668913569,7.84262621,1999.1,1998.9,31.091]
[1742668916277,2.54088507,1999.0,1998.9,31.091]
[1742668916473,5.00276,1998.9,1998.8,4.641]
[1742668916675,7.54364507,1998.9,1998.8,4.641]
[1742668916874,7.8428771,1998.9,1998.8,4.641]
[1742668917074,7.8428771,1998.9,1998.8,5.10877494]
[1742668918006,7.8428771,1998.9,1998.8,5.57647942]
[1742668918684,7.8428771,1998.9,1998.8,5.10870448]
[1742668920402,0.29923203,1998.9,1998.8,5.10870448]
[1742668920791,0.29923203,1998.9,1998.8,10.11170448]
[1742668920970,8.30421507,1999.2,1998.8,15.11454448]
[1742668921175,0.2995948,1999.1,1998.8,15.11454448]
[1742668921575,0.2995948,1999.1,1998.9,0.46770448]
[1742668922709,0.2995948,1999.1,1998.8,9.64384]
[1742668924207,0.2995948,1999.1,1998.9,0.46753213]
[1742668925284,0.2995948,1999.1,1998.9,26.449]
[1742668926212,0.2995948,1999.1,1999.0,0.778]
[1742668927124,12.54472507,1999.3,1999.0,0.778]
[1742668927297,0.29959406,1999.1,1999.0,1.24552287]
[1742668927499,5.00201,1999.2,1999.0,1.24552287]
[1742668927832,0.29959406,1999.1,1999.0,1.24552287]
[1742668929095,0.29959406,1999.1,1999.0,0.46752287]
[1742668931638,0.29959406,1999.1,1998.9,26.449]
[1742668935355,0.29959406,1999.1,1998.9,31.45162]
[1742668936426,0.29959406,1999.1,1998.9,26.449]
[1742668940747,0.29959406,1999.1,1998.9,31.45173]
[1742668941744,0.29959406,1999.1,1998.9,26.449]
[1742668942161,0.29959406,1999.1,1999.0,5.0025]
[1742668942361,0.29959406,1999.1,1999.0,8.89820658]
[1742668942521,5.81462,1999.8,1999.4,10.75756]
[1742668942722,5.81462,1999.8,1999.4,10.39416]
[1742668942723,7.15019651,1999.8,1999.4,10.39416]
[1742668942923,0.30099856,1999.7,1999.6,5.001]
[1742668943149,0.30099856,1999.7,1999.6,35.34368615]
[1742668943458,13.35399507,2000.2,1999.8,5.00049]
[1742668943627,13.35399507,2000.2,1999.9,4.639]
[1742668943949,5.30208956,2000.1,1999.9,4.639]
[1742668944146,7.84297463,2000.1,1999.9,4.639]
[1742668944334,7.54088507,2000.0,1999.9,4.639]
[1742668944850,8.65671257,2000.0,1999.9,4.639]
[1742668945045,5.0005,1999.8,1999.7,4.638]
[1742668945218,5.00075,1999.7,1999.6,26.447]
[1742668945547,7.84405351,1999.7,1999.6,26.447]
[1742668946436,7.84405351,1999.7,1999.6,26.447]
[1742668946623,8.62095351,1999.7,1999.6,26.447]
[1742668947460,6.08006844,1999.7,1999.6,26.447]
[1742668947655,5.30316844,1999.7,1999.6,26.447]
[1742668949454,7.84405351,1999.7,1999.6,26.447]
[1742668952733,9.12850886,1999.7,1999.6,26.447]
[1742668953533,7.84405351,1999.7,1999.6,26.447]
[1742668956674,5.00118,1999.6,1999.4,4.638]
[1742668956874,12.54324507,1999.6,1999.4,4.638]
[1742668957074,0.3034665,1999.5,1999.4,4.638]
[1742668962872,0.3034665,1999.5,1999.4,10.3954]
[1742668963072,0.3034665,1999.5,1999.4,12.93628507]
[1742668963279,13.00082,1999.9,1999.4,12.93628507]
[1742668963479,13.00082,1999.9,1999.5,5.00119]
[1742668963656,0.30389647,1999.8,1999.5,5.00119]
[1742668964047,15.54170507,1999.9,1999.5,5.00119]
[1742668964247,5.3038591,1999.8,1999.5,0.05000716]
[1742668965179,0.3033091,1999.8,1999.5,5.05117716]
[1742668965579,12.54170507,1999.9,1999.5,5.05117716]
[1742668965756,0.30319083,1999.7,1999.4,10.39535]
[1742668965960,5.00051,1999.8,1999.4,10.39535]
[1742668966157,0.30321029,1999.6,1999.4,10.39535]
[1742668966368,5.00051,1999.8,1999.4,10.39535]
[1742668966559,0.30298505,1999.5,1999.4,10.94535]
[1742668966763,7.54125507,1999.9,1999.5,5.00121]
[1742668967281,5.00052,1999.8,1999.5,5.00121]
[1742668967775,5.00052,1999.8,1999.4,10.94533]